fUST/lending_fUST_20260220
["ID","MTS","AMOUNT","RATE_DAILY","PERIOD"]
[406015049,1771555832187,-150.0,0.00010975,2]
[406015050,1771555832197,-1370.513,0.0001103,2]
[406015051,1771555832207,-600.0,0.00012483,2]
[406015052,1771555832217,-177.0,0.00012975,2]
[406015053,1771555832227,-500.0,0.00013273,2]
[406015054,1771555832237,-500.0,0.00013273,2]
[406015055,1771555832247,-500.0,0.00013273,2]
[406015056,1771555832258,-500.0,0.00013273,2]
[406015057,1771555832268,-500.0,0.00013273,2]
[406015058,1771555832277,-4151.39027556,0.00013593,2]
[406015059,1771555832285,-151.34901802,0.00013673,2]
[406015060,1771555832295,-500.0,0.00013692,2]
[406015061,1771555832304,-500.0,0.00013692,2]
[406015062,1771555832313,-500.0,0.00013692,2]
[406015063,1771555832324,-502.82072594,0.00013692,2]
[406015064,1771555832334,-500.0,0.00013692,2]
[406015065,1771555832344,-500.0,0.00013692,2]
[406015066,1771555832353,-500.0,0.00013692,2]
[406015067,1771555832361,-500.0,0.00013692,2]
[406015068,1771555832371,-500.0,0.00013692,2]
[406015069,1771555832380,-500.0,0.00013692,2]
[406015070,1771555832389,-500.0,0.00013692,2]
[406015071,1771555832399,-500.0,0.00013692,2]
[406015072,1771555832407,-500.0,0.00013692,2]
[406015073,1771555832419,-500.0,0.00013692,2]
[406015074,1771555832428,-292.46151534,0.00013692,2]
[406015075,1771555832438,-270.15387697,0.00013692,2]
[406015076,1771555832447,-500.0,0.00013692,2]
[406015077,1771555832456,-500.0,0.00013692,2]
[406015078,1771555832465,-614.20129178,0.00013692,2]
[406015079,1771555832474,-500.0,0.00013692,2]
[406015080,1771555832483,-374.73342259,0.00013692,2]
[406015082,1771555838191,-1022.15739019,0.00013555,2]
[406015098,1771555840383,-3977.84260981,0.00013555,2]
[406015100,1771555840392,-125.26657741,0.00013692,2]
[406015102,1771555840401,-284.70185039,0.00013692,2]
[406015104,1771555840410,-500.0,0.00013692,2]
[406015105,1771555840419,-500.0,0.00013692,2]
[406015106,1771555840428,-500.0,0.00013692,2]
[406015107,1771555840437,-500.0,0.00013692,2]
[406015108,1771555840447,-317.58548951,0.00013692,2]
[406015109,1771555840456,-500.0,0.00013692,2]
[406015110,1771555840464,-500.0,0.00013692,2]
[406015111,1771555840473,-500.0,0.00013692,2]
[406015112,1771555840590,-500.0,0.00013692,2]
[406015113,1771555840606,-500.0,0.00013692,2]
[406015114,1771555840617,-389.64145975,0.00013692,2]
[406015115,1771555840627,-500.0,0.00013692,2]
[406015116,1771555840637,-500.0,0.00013692,2]
[406015117,1771555840647,-500.0,0.00013692,2]
[406015118,1771555840656,-500.0,0.00013692,2]
[406015119,1771555840666,-500.0,0.00013692,2]
[406015120,1771555840675,-500.0,0.00013692,2]
[406015121,1771555840685,-500.0,0.00013699,2]
[406015122,1771555840694,-505.45800329,0.00013699,2]
[406015123,1771555840703,-505.29295394,0.00013699,2]
[406015124,1771555840714,-500.0,0.00013699,2]
[406015125,1771555840724,-577.81615482,0.00013699,2]
[406015126,1771555840734,-648.68421784,0.00013699,2]
[406015127,1771555840744,-505.67289397,0.00013699,2]
[406015128,1771555840753,-233.93745439,0.00013699,2]
[406015129,1771555840762,-441.84339298,0.00013699,2]
[406015130,1771555840771,-519.48799971,0.00013699,2]
[406015131,1771555840780,-500.6326985,0.00013699,2]
[406015132,1771555840789,-500.0,0.00013699,2]
[406015133,1771555840798,-500.0,0.00013699,2]
[406015134,1771555840808,-500.0,0.00013699,2]
[406015135,1771555840818,-500.0,0.00013699,2]
[406015136,1771555840827,-500.0,0.00013699,2]
[406015137,1771555840836,-500.0,0.00013699,2]
[406015138,1771555840845,-500.0,0.00013699,2]
[406015139,1771555840854,-500.0,0.00013699,2]
[406015140,1771555840863,-500.0,0.00013699,2]
[406015141,1771555840872,-500.0,0.00013699,2]
[406015142,1771555840881,-500.0,0.00013699,2]
[406015143,1771555840890,-500.0,0.00013699,2]
[406015144,1771555840899,-328.12966216,0.00013699,2]
[406015145,1771555840908,-500.0,0.00013699,2]
[406015146,1771555840917,-83.00658153,0.00013699,2]
[406015158,1771555843474,-416.99341847,0.00013699,2]
[406015159,1771555843483,-500.0,0.00013699,2]
[406015160,1771555843493,-551.7186439,0.00013821,2]
[406015161,1771555843502,-282.13793763,0.00013821,2]
[406015162,1771555843527,-237.39121345,0.00013821,2]
[406015163,1771555843536,-116.05878655,0.00013821,2]
[406015168,1771555846099,-883.94121345,0.00013821,2]
[406015169,1771555846108,-1000.0,0.00013821,2]
[406015170,1771555846117,-1000.0,0.00013821,2]
[406015171,1771555846128,-600.0,0.00013965,2]
[406015172,1771555846137,-250.65199158,0.0001417,2]
[406015173,1771555846146,-1000.0,0.00014247,2]
[406015174,1771555846155,-505.66888302,0.00014247,2]
[406015175,1771555846164,-482.93047518,0.00014247,2]
[406015176,1771555846174,-511.86275612,0.00014368,2]
[406015177,1771555846183,-1500.0,0.00014368,2]
[406015178,1771555846191,-1502.64773001,0.00014368,2]
[406015179,1771555846202,-1147.47897576,0.00014795,2]
[406015180,1771555846211,-164.42339456,0.000149,2]
[406015181,1771555846220,-500.96311839,0.00014916,2]
[406015182,1771555846228,-204.0,0.00014975,2]
[406015183,1771555846237,-720.0,0.00015361,2]
[406015184,1771555846247,-434.46771345,0.00016514,2]
[406015185,1771555846255,-1000.0,0.00016515,2]
[406015186,1771555846264,-169.05,0.00016515,2]
[406015187,1771555846273,-169.05,0.00016515,2]
[406015188,1771555846283,-169.05,0.00016515,2]
[406015189,1771555846291,-169.06,0.00016515,2]
[406015190,1771555846300,-265.31881837,0.00016897,2]
[406015196,1771556538484,-1327.41404306,0.00012344,2]
[406015226,1771556746028,447.0,6.9e-05,2]
[406015258,1771557032357,-854.37102466,0.00011414,2]
[406015260,1771557032368,-896.33579158,0.00011414,2]
[406015848,1771557038488,-1052.49164465,0.00011414,2]
[406015850,1771557038506,-1890.68751721,0.00011414,2]
[406015852,1771557038518,-306.1140219,0.00011414,2]
[406015854,1771557038528,-636.9509781,0.00011529,2]
[406016166,1771557046313,-798.7562679,0.00011529,2]
[406016167,1771557046323,-5000.0,0.00011645,2]
[406016168,1771557046332,-150.0,0.00011942,2]
[406016169,1771557046341,-179.35569909,0.00012299,2]
[406016170,1771557046351,-300.0,0.00012299,2]
[406016171,1771557046360,-9362.54913578,0.000123,2]
[406016172,1771557046419,-6238.45086422,0.000123,2]
[406016173,1771557046428,-2699.53163576,0.00012344,2]
[406016174,1771557046438,-433.77568676,0.000124,2]
[406016175,1771557046447,-500.0,0.0001276,2]
[406016176,1771557046456,-500.0,0.0001276,2]
[406016177,1771557046465,-500.0,0.0001276,2]
[406016178,1771557046474,-208.75370301,0.0001276,2]
[406016179,1771557046483,-154.0,0.00012914,2]
[406016180,1771557046498,-500.0,0.00013273,2]
[406016181,1771557046508,-505.66516554,0.00013273,2]
[406016182,1771557046517,-504.96080406,0.00013273,2]
[406016183,1771557046527,-567.38717322,0.00013273,2]
[406016184,1771557046539,-173.97860575,0.00013273,2]
[406016185,1771557046548,-233.459332,0.00013699,2]
[406016186,1771557046557,-425.14418968,0.00013699,2]
[406016187,1771557046687,-500.38171454,0.00013699,2]
[406016188,1771557046699,-504.92646284,0.00013699,2]
[406016189,1771557046709,-504.10747769,0.00013699,2]
[406016190,1771557046720,-500.0,0.00013699,2]
[406016191,1771557046730,-244.58077835,0.00013699,2]
[406016192,1771557046740,-394.26529793,0.00013699,2]
[406016193,1771557046751,-500.93911074,0.00013699,2]
[406016194,1771557046761,-503.33441013,0.00013699,2]
[406016195,1771557046771,-501.83965359,0.00013699,2]
[406016196,1771557046781,-502.603343,0.00013699,2]
[406016197,1771557046790,-287.3116462,0.00013699,2]
[406016198,1771557046801,-151.0,0.00013699,2]
[406016199,1771557046810,-162.21935436,0.00013699,2]
[406016200,1771557046820,-503.19022225,0.00013699,2]
[406016201,1771557046830,-512.78911741,0.00013699,2]
[406016202,1771557046839,-441.16919547,0.00013699,2]
[406016203,1771557046848,-501.71719372,0.00013699,2]
[406016204,1771557046859,-1000.0,0.00013821,2]
[406016205,1771557046868,-177.0,0.00013942,2]
[406016206,1771557046878,-511.3778684,0.00014247,2]
[406016207,1771557046887,-1004.617123,0.00014253,2]
[406016208,1771557046896,-1128.90453545,0.00014368,2]
[406016209,1771557046905,-204.0,0.00015942,2]
[406016210,1771557046914,-1004.617123,0.00016051,2]
[406016211,1771557046923,-223.771,0.00017108,2]
[406016212,1771557046933,-1004.617123,0.00017849,2]
[406016213,1771557046942,-231.0,0.00017942,2]
[406016214,1771557046952,-158.90304367,0.00019178,2]
[406016215,1771557046961,-1004.617123,0.00019646,2]
[406016216,1771557046971,-258.0,0.00019942,2]
[406016217,1771557046980,-150.0,0.0002,10]
[406016218,1771557046989,-233.459332,0.00020548,2]
[406016219,1771557046998,-285.0,0.00021942,2]
[406016220,1771557047007,-743.73449086,0.0002211,2]
[406016221,1771557047016,-281.0,0.00023184,10]
[406016222,1771557047025,-500.0,0.00023801,2]
[406016223,1771557047034,-312.0,0.00023942,2]
[406016224,1771557047043,-91.03666459,0.00024126,2]
[406016266,1771558232569,-355.20613209,0.00012165,3]
[406016268,1771558232580,-300.0,0.00012165,3]
[406016287,1771558238630,-1338.8803862,0.00012165,3]
[406016322,1771558240985,-564.32379657,0.00012165,3]
[406016349,1771558243910,-200.42209229,0.0001225,2]
[406016350,1771558243919,-150.0,0.0001235,2]
[406016351,1771558243929,-159.02346177,0.00013273,2]
[406016396,1771558246527,-3138.28324696,0.00012043,3]
[406016397,1771558247275,-1257.42635663,0.00012043,3]
[406016398,1771558300172,-604.29039641,0.00012043,3]
[406016399,1771558300198,-181.0,0.00012732,2]
[406016400,1771558316896,-2488.45817106,0.00013139,2]
[406016401,1771558316910,-2511.54182894,0.00013139,2]
[406016402,1771558316919,-300.0,0.00013272,2]
[406016403,1771558316929,-205.6078801,0.00013273,2]
[406016404,1771558316938,-500.0,0.00013273,2]
[406016405,1771558316947,-500.0,0.00013273,2]
[406016406,1771558316955,-500.0,0.00013273,2]
[406016407,1771558316964,-346.82046054,0.00013273,2]
[406016408,1771558316973,-136.02983042,0.00013537,2]
[406016411,1771558680904,195.86,3.436e-05,2]
[406016412,1771558681164,195.84,3.436e-05,2]
[406016454,1771559436709,-5000.0,0.00011187,2]
[406016456,1771559436718,-150.0,0.00011357,2]
[406016457,1771559436728,-300.0,0.00011413,2]
[406016458,1771559436737,-300.0,0.00011413,2]
[406016459,1771559436748,-300.0,0.00011413,2]
[406016460,1771559436757,-1200.0,0.00011413,2]
[406016461,1771559436766,-1481.9638641,0.00011414,2]
[406016465,1771559436919,-1078.08916142,0.00011414,2]
[406016472,1771559437772,-2984.11039038,0.00011414,2]
[406016473,1771559437781,-300.0,0.00012059,2]
[406016474,1771559437790,-11634.5234314,0.0001206,2]
[406016475,1771559437799,-500.0,0.00012163,2]
[406016476,1771559437808,-500.0,0.00012163,2]
[406016477,1771559437817,-500.0,0.00012163,2]
[406016478,1771559437826,-500.0,0.00012163,2]
[406016479,1771559437835,-321.60711355,0.00012163,2]
[406016480,1771559437845,-500.0,0.00012163,2]
[406016481,1771559437854,-476.07798338,0.00012163,2]
[406016482,1771559437863,-500.0,0.00012163,2]
[406016483,1771559437872,-500.0,0.00012163,2]
[406016485,1771559437882,-500.0,0.00012163,2]
[406016487,1771559437891,-310.00439841,0.00012163,2]
[406016488,1771559437899,-474.85984598,0.00012163,2]
[406016489,1771559437911,-25.14015402,0.00012163,2]
[406016490,1771559437920,-500.0,0.00012163,2]
[406016491,1771559437930,-500.0,0.00012163,2]
[406016492,1771559437939,-500.0,0.00012163,2]
[406016493,1771559437948,-500.0,0.00012163,2]
[406016494,1771559437957,-500.0,0.00012163,2]
[406016495,1771559437966,-500.0,0.00012163,2]
[406016496,1771559437975,-500.0,0.00012163,2]
[406016497,1771559437984,-500.0,0.00012163,2]
[406016498,1771559437993,-500.0,0.00012163,2]
[406016499,1771559438001,-500.0,0.00012163,2]
[406016500,1771559438010,-500.0,0.00012163,2]
[406016501,1771559438019,-500.0,0.00012163,2]
[406016502,1771559438028,-500.0,0.00012163,2]
[406016503,1771559438037,-500.0,0.00012163,2]
[406016504,1771559438045,-500.0,0.00012163,2]
[406016505,1771559438055,-500.0,0.00012163,2]
[406016506,1771559438063,-500.0,0.00012163,2]
[406016507,1771559438072,-500.0,0.00012163,2]
[406016508,1771559438081,-500.0,0.00012163,2]
[406016509,1771559438090,-500.0,0.00012163,2]
[406016510,1771559438100,-500.0,0.00012163,2]
[406016511,1771559438109,-500.0,0.00012163,2]
[406016512,1771559438118,-290.91251468,0.00012163,2]
[406016513,1771559438127,-500.0,0.00012163,2]
[406016514,1771559438135,-500.0,0.00012163,2]
[406016515,1771559438144,-500.0,0.00012163,2]
[406016516,1771559438153,-500.0,0.00012163,2]
[406016517,1771559438162,-304.12124461,0.00012164,2]
[406016541,1771559439988,-195.87875539,0.00012164,2]
[406016543,1771559439997,-238.25061149,0.00012164,2]
[406016545,1771559440007,-5.09701894,0.00012165,2]
[406016707,1771559443172,-494.90298106,0.00012165,2]
[406016708,1771559443187,-16.41204678,0.00012166,2]
[406016709,1771559443227,-658.83621924,0.00012166,2]
[406016710,1771559443239,-2204.30861033,0.00012166,2]
[406016711,1771559443251,-382.35591491,0.00012166,2]
[406016730,1771559445692,-4056.94858899,0.00012166,2]
[406016731,1771559445747,-2115.60948235,0.00012166,2]
[406016732,1771559445757,-180.79525802,0.00012321,2]
[406016733,1771559445766,-151.0,0.00012321,2]
[406016734,1771559445775,-151.0,0.00012321,2]
[406016735,1771559445784,-151.0,0.00012321,2]
[406016736,1771559445793,-151.0,0.00012321,2]
[406016737,1771559445803,-151.0,0.00012321,2]
[406016738,1771559445813,-151.0,0.00012321,2]
[406016739,1771559445823,-151.0,0.00012321,2]
[406016740,1771559445833,-151.0,0.00012321,2]
[406016741,1771559445842,-151.0,0.00012321,2]
[406016742,1771559445852,-151.0,0.00012321,2]
[406016743,1771559445862,-151.0,0.00012321,2]
[406016744,1771559445873,-151.0,0.00012321,2]
[406016745,1771559445885,-151.0,0.00012321,2]
[406016746,1771559445895,-151.0,0.00012321,2]
[406016747,1771559445904,-151.0,0.00012321,2]
[406016748,1771559445913,-151.0,0.00012321,2]
[406016749,1771559445921,-151.0,0.00012321,2]
[406016750,1771559445930,-151.0,0.00012321,2]
[406016751,1771559445939,-151.0,0.00012321,2]
[406016752,1771559445947,-153.90321006,0.00012321,2]
[406016753,1771559445956,-373.57,0.00012329,2]
[406016754,1771559445965,-311.31,0.00012329,2]
[406016755,1771559445973,-259.42,0.00012329,2]
[406016756,1771559445982,-216.19,0.00012329,2]
[406016757,1771559445991,-180.16,0.00012329,2]
[406016758,1771559446000,-150.13,0.00012329,2]
[406016759,1771559446009,-750.67,0.00012329,2]
[406016760,1771559446018,-401.04527833,0.00012384,2]
[406016761,1771559446027,-500.0,0.00012439,2]
[406016762,1771559446036,-1723.963289,0.00012522,2]
[406016763,1771559446046,-420.0,0.00012537,2]
[406016764,1771559446055,-1680.0,0.00012554,2]
[406016765,1771559446064,-420.0,0.00012662,2]
[406016766,1771559446073,-500.0,0.00012713,2]
[406016767,1771559446083,-10755.38870898,0.000129,2]
[406016768,1771559446092,-500.0,0.00012987,2]
[406016769,1771559446101,-4046.8746552,0.00013024,2]
[406016770,1771559446110,-188.644925,0.00013024,2]
[406016771,1771559446120,-1723.963289,0.00013049,2]
[406016772,1771559446129,-1345.69008901,0.00013078,2]
[406016773,1771559446138,-214.95,0.000131,2]
[406016774,1771559446148,-150.0,0.00013162,2]
[406016775,1771559446157,-150.0,0.00013162,2]
[406016776,1771559446166,-253.16315724,0.00013162,2]
[406016777,1771559446175,-273.30787102,0.00013162,2]
[406016778,1771559446188,-150.0,0.00013217,2]
[406016779,1771559446197,-150.0,0.00013217,2]
[406016780,1771559446205,-500.0,0.00013261,2]
[406016781,1771559446214,-150.0,0.00013272,2]
[406016782,1771559446224,-150.0,0.00013272,2]
[406016783,1771559446232,-504.58382265,0.00013273,2]
[406016784,1771559446242,-500.0,0.00013273,2]
[406016785,1771559446251,-205.6078801,0.00013273,2]
[406016786,1771559446260,-500.0,0.00013273,2]
[406016787,1771559446270,-258.57055489,0.00013273,2]
[406016788,1771559446279,-500.0,0.00013273,2]
[406016789,1771559446287,-463.43328444,0.00013273,2]
[406016790,1771559446296,-500.0,0.00013273,2]
[406016791,1771559446305,-500.0,0.00013273,2]
[406016792,1771559446314,-500.0,0.00013273,2]
[406016793,1771559446323,-500.0,0.00013273,2]
[406016794,1771559446332,-587.0,0.00013295,2]
[406016795,1771559446342,-155.40258118,0.00013326,2]
[406016796,1771559446350,-150.0,0.00013326,2]
[406016797,1771559446360,-824.89244576,0.00013346,2]
[406016798,1771559446369,-177.0,0.00013357,2]
[406016799,1771559446378,-414.97742672,0.00013376,2]
[406016800,1771559446391,-220.02257328,0.00013376,2]
[406016801,1771559446400,-574.39186533,0.00013376,2]
[406016804,1771560100681,-1021.99105978,0.00011457,2]
[406016805,1771560207228,302.633,0.00014,30]
[406016807,1771560483096,184.5,3.436e-05,2]
[406016808,1771560483405,184.5,3.436e-05,2]
[406016847,1771560632198,-150.0,0.00011343,2]
[406016849,1771560632209,-948.58344882,0.00011457,2]
[406016851,1771560632220,-276.0,0.00011798,2]
[406016853,1771560632231,-300.0,0.00011798,2]
[406016855,1771560632242,-1200.0,0.00011798,2]
[406016857,1771560632253,-500.0,0.00011799,2]
[406016859,1771560632263,-313.51190151,0.00011799,2]
[406016861,1771560632274,-500.0,0.00011799,2]
[406016863,1771560632283,-622.78865418,0.00011799,2]
[406016865,1771560632293,-500.0,0.00011799,2]
[406016867,1771560632303,-500.0,0.00011799,2]
[406016870,1771560632313,-6220.97472878,0.000118,2]
[406016906,1771560637933,-5000.0,0.00011117,2]
[406016909,1771560637943,-25067.62946038,0.000118,2]
[406016911,1771560637956,-2233.56746409,0.000118,2]
[406016913,1771560640068,-490.21290061,0.000118,2]
[406016939,1771560645921,-3163.91173982,0.000118,2]
[406016940,1771560645931,-5399.21,0.000118,2]
[406017019,1771561831895,-191.67336974,0.0001,2]
[406017021,1771561831904,-560.0,0.0001,2]
[406017023,1771561831914,-150.0,0.00010187,2]
[406017025,1771561831923,-5000.0,0.00010374,2]
[406017026,1771561831934,-300.0,0.00010478,2]
[406017028,1771561831943,-1200.0,0.00010478,2]
[406017030,1771561831952,-2034.93301398,0.00010479,2]
[406017031,1771561831964,-852.67821556,0.00010479,2]
[406017095,1771561845856,-5000.0,0.00010692,2]
[406017096,1771561845866,-3164.99159551,0.000108,2]
[406017097,1771561846017,-289.01966156,0.000108,2]
[406017098,1771561846027,-622.18127525,0.00011226,2]
[406017099,1771561846037,-158.46617317,0.0001152,2]
[406017100,1771561900221,-3273.74856747,0.00011405,2]
[406017101,1771561900244,-1726.25143253,0.00011405,2]
[406017102,1771561929350,-3273.74856747,0.00011411,2]
[406017114,1771562283687,258.28,3.436e-05,2]
[406017136,1771563032061,-351.1999925,9.757e-05,2]
[406017137,1771563032073,-41.46241894,9.757e-05,2]
[406017138,1771563032082,-346.43758105,9.757e-05,2]
[406017194,1771563038226,-102.31946059,9.757e-05,2]
[406017196,1771563038236,-557.0,9.757e-05,2]
[406017198,1771563038246,-864.38623775,9.853e-05,2]
[406017201,1771563038259,-3092.64423181,9.853e-05,2]
[406017251,1771563040567,-836.11417949,9.853e-05,2]
[406017537,1771563043682,-206.85535095,9.853e-05,2]
[406017538,1771563043693,-300.0,9.952e-05,2]
[406017551,1771563043704,-300.0,9.952e-05,2]
[406017553,1771563043827,-300.0,9.952e-05,2]
[406017555,1771563043836,-300.0,9.952e-05,2]
[406017557,1771563043846,-1200.0,9.952e-05,2]
[406017559,1771563043855,-1784.80776206,9.953e-05,2]
[406017561,1771563043866,-500.0,9.953e-05,2]
[406017563,1771563043877,-284.64068081,9.953e-05,2]
[406017565,1771563043888,-552.95131547,9.953e-05,2]
[406017789,1771563046150,-1854.72897573,9.953e-05,2]
[406017830,1771563760061,5293.0,0.00014,30]
[406017835,1771564083987,180.8,3.436e-05,2]
[406017836,1771564232262,-1232.13925864,8.28e-05,2]
[406018052,1771564238408,-3615.65072795,8.197e-05,2]
[406018129,1771564240860,-1138.54114521,8.197e-05,2]
[406018159,1771564243625,-245.80812684,8.197e-05,2]
[406018160,1771564243634,-300.0,8.364e-05,2]
[406018161,1771564243644,-1200.0,8.364e-05,2]
[406018162,1771564243654,-403.52187316,8.365e-05,2]
[406018163,1771564243666,-197.44867679,8.365e-05,2]
[406018164,1771564243675,-595.90471471,8.365e-05,2]
[406018165,1771564243686,-485.84227521,8.365e-05,2]
[406018166,1771564243695,-1923.10575985,8.365e-05,2]
[406018167,1771564243704,-3004.85274976,8.365e-05,2]
[406018168,1771564243713,-150.0,8.541e-05,2]
[406018169,1771564243722,-250.50481628,8.581e-05,2]
[406018170,1771564243731,-420.0,9.201e-05,2]
[406018171,1771564243740,-1680.0,9.201e-05,2]
[406018172,1771564243750,-3160.0843989,9.201e-05,2]
[406018200,1771564246469,-10761.10153591,9.201e-05,2]
[406018203,1771564556010,2307.49915986,0.00014,30]
[406018310,1771565438507,-352.14205731,7.9e-05,2]
[406018311,1771565438517,-5000.0,8.151e-05,2]
[406018312,1771565438527,-150.0,8.275e-05,2]
[406018313,1771565438536,-312.82873894,8.316e-05,2]
[406018314,1771565438545,-357.51855879,8.316e-05,2]
[406018315,1771565438555,-395.56613347,8.968e-05,2]
[406018316,1771565438564,-1200.0,9.083e-05,2]
[406018317,1771565438573,-1149.308859,9.084e-05,2]
[406018318,1771565438582,-300.0,9.197e-05,2]
[406018319,1771565438591,-1222.99911084,9.44e-05,2]
[406018320,1771565438602,-1263.23726504,9.44e-05,2]
[406018321,1771565438611,-1149.308859,9.467e-05,2]
[406018322,1771565438621,-3333.95781127,9.467e-05,2]
[406018323,1771565438632,-1677.61615989,9.467e-05,2]
[406018324,1771565438643,-6415.90805954,9.467e-05,2]
[406018352,1771565446394,-317.706,9.467e-05,2]
[406018353,1771565446453,-6225.6851593,9.467e-05,2]
[406018354,1771565446463,-160.3416647,9.496e-05,2]
[406018355,1771565446472,-161.2222522,9.496e-05,2]
[406018356,1771565446481,-134.28111918,9.496e-05,2]
[406018362,1771565481498,-1680.12722241,9.278e-05,2]
[406018368,1771565883036,261.98,3.436e-05,2]
[406018399,1771566631601,-4769.72419155,7.185e-05,2]
[406018417,1771566637789,-2525.36643003,7.113e-05,2]
[406018418,1771566637848,-304.34659209,7.113e-05,2]
[406018419,1771566637858,-230.27580845,7.185e-05,2]
[406018420,1771566637867,-3817.03897173,7.258e-05,2]
[406018452,1771566644131,-1924.80403454,7.185e-05,2]
[406018453,1771566644142,-3075.19596546,7.185e-05,2]
[406018454,1771566644151,-702.29488973,7.258e-05,2]
[406018455,1771566644160,-150.0,7.295e-05,2]
[406018456,1771566644169,-300.0,7.404e-05,2]
[406018457,1771566644179,-300.0,7.404e-05,2]
[406018458,1771566644188,-300.0,7.404e-05,2]
[406018459,1771566644197,-300.0,7.404e-05,2]
[406018460,1771566644206,-1200.0,7.404e-05,2]
[406018461,1771566644217,-5005.2195095,7.866e-05,2]
[406018462,1771566644226,-420.0,8.144e-05,2]
[406018463,1771566644235,-1680.0,8.144e-05,2]
[406018464,1771566644244,-164.5338194,8.687e-05,2]
[406018465,1771566644253,-261.34,8.7e-05,2]
[406018466,1771566644262,-587.0,8.959e-05,2]
[406018467,1771566644271,-1032.0,8.959e-05,2]
[406018468,1771566644279,-197.394385,9.084e-05,2]
[406018469,1771566644288,-1285.3384525,9.084e-05,2]
[406018470,1771566644297,-177.0,9.295e-05,2]
[406018471,1771566644306,-315.14209432,9.322e-05,2]
[406018472,1771566644316,-9000.0,9.77e-05,2]
[406018473,1771566644325,-9000.0,9.77e-05,2]
[406018474,1771566644334,-5275.53708045,9.77e-05,2]
[406018475,1771566644343,-6264.1532293,9.771e-05,2]
[406018476,1771566644352,-1149.308859,9.849e-05,2]
[406018477,1771566644360,-703.0,9.855e-05,2]
[406018478,1771566644369,-201.96583569,9.952e-05,2]
[406018479,1771566644378,-363.53850425,9.952e-05,2]
[406018480,1771566644387,-1149.308859,0.00010232,2]
[406018481,1771566644396,-265.8535697,0.00010491,5]
[406018482,1771566644405,-204.66,0.00010576,2]
[406018483,1771566644414,-204.66,0.00010576,2]
[406018484,1771566644429,-201.95,0.00010576,2]
[406018485,1771566644442,-1149.308859,0.00010614,2]
[406018486,1771566644451,-1149.308859,0.00010996,2]
[406018487,1771566644460,-204.0,0.00011295,2]
[406018488,1771566644469,-271.30599407,0.00011295,2]
[406018489,1771566644479,-500.0,0.00011309,2]
[406018490,1771566644488,-150.0,0.00011309,2]
[406018491,1771566644497,-500.0,0.00011364,2]
[406018492,1771566644506,-235.42358824,0.00011364,2]
[406018493,1771566644516,-372.30664796,0.00011419,2]
[406018494,1771566644525,-190.81753125,0.00011528,2]
[406018496,1771566644534,-150.0,0.00011528,2]
[406018498,1771566644544,-187.96590122,0.00011528,2]
[406018500,1771566644553,-1397.7215132,0.00011569,2]
[406018502,1771566644562,-200.0,0.00011583,2]
[406018504,1771566644571,-151.0,0.000118,2]
[406018506,1771566644580,-262.02345802,0.000118,2]
[406018508,1771566644590,-500.0,0.00011802,2]
[406018510,1771566644599,-500.0,0.00011802,2]
[406018512,1771566644608,-500.0,0.00011802,2]
[406018514,1771566644617,-500.0,0.00011802,2]
[406018516,1771566644626,-500.0,0.00011802,2]
[406018518,1771566644635,-500.0,0.00011802,2]
[406018520,1771566644644,-500.0,0.00011802,2]
[406018521,1771566644653,-500.0,0.00011802,2]
[406018522,1771566644662,-500.0,0.00011802,2]
[406018523,1771566644810,-500.0,0.00011802,2]
[406018524,1771566644822,-330.99688121,0.00011802,2]
[406018525,1771566644831,-197.394385,0.00011896,2]
[406018526,1771566644840,-311.873825,0.0001197,2]
[406018527,1771566644850,-600.0,0.00012566,2]
[406018528,1771566644859,-638.82719115,0.00012618,2]
[406018529,1771566644867,-1000.0,0.000127,2]